bitfinex-derivatives/quotes_ETHF0:USTF0_20260316
["timestamp","ask_amount","ask_price","bid_price","bid_amount"]
[1773688687673,10.64899733,2340.0,2339.0,10.65793314]
[1773688688070,10.86010868,2340.0,2339.1,10.516]
[1773688688273,10.86010868,2340.0,2339.0,10.73622339]
[1773688689175,10.86010868,2340.0,2339.1,10.43970975]
[1773688690674,10.86010868,2340.0,2339.0,10.74522339]
[1773688691274,10.86010868,2340.0,2339.0,0.00447339]
[1773688691475,10.64899733,2339.8,2338.5,0.21379]
[1773688691781,10.64899733,2339.6,2338.5,0.21379]
[1773688691981,10.64899733,2339.4,2338.5,0.21379]
[1773688692478,10.64899733,2339.4,2338.5,0.21777928]
[1773688692675,10.64899733,2339.4,2338.5,10.65748903]
[1773688693686,10.64899733,2339.4,2338.5,0.21777928]
[1773688695882,10.64899733,2339.4,2338.5,10.65748903]
[1773688698183,10.64899733,2339.4,2338.5,0.21777928]
[1773688698780,10.86798509,2339.4,2338.5,0.21777928]
[1773688704683,10.86798509,2339.4,2338.5,10.02075663]
[1773688704883,10.86798509,2339.4,2338.5,0.21777928]
[1773688705686,1.78958698,2339.1,2337.8,9.80297735]
[1773688705886,9.94278733,2338.9,2337.7,10.556]
[1773688706085,9.94278733,2338.9,2337.7,9.80297735]
[1773688706686,9.94278733,2338.7,2337.7,9.80757878]
[1773688706884,9.94278733,2338.5,2337.1,9.80297735]
[1773688707093,9.94278733,2338.3,2337.1,9.80297735]
[1773688707286,9.94278733,2338.3,2337.3,9.80297735]
[1773688708085,9.94278733,2338.3,2337.3,9.80780675]
[1773688710594,9.94278733,2338.3,2337.3,0.0048294]
[1773688710892,9.94278733,2338.3,2337.3,9.80780675]
[1773688711695,10.15820006,2338.3,2337.3,0.0048294]
[1773688712394,10.15820006,2338.3,2337.5,9.80297735]
[1773688713692,10.15820006,2338.3,2337.6,10.01685735]
[1773688714590,9.94278733,2338.8,2338.0,0.21383]
[1773688714986,9.94278733,2338.8,2337.6,9.80297735]
[1773688717589,10.16136046,2338.8,2338.0,9.80297735]
[1773688717795,10.16136046,2338.8,2337.9,0.21385]
[1773688718094,9.94278733,2338.6,2336.9,10.01691735]
[1773688718296,9.94278733,2338.0,2336.7,9.80297735]
[1773688718498,9.94278733,2337.8,2336.7,9.80297735]
[1773688718997,9.94278733,2337.6,2336.2,9.80297735]
[1773688719192,9.94278733,2337.4,2336.2,9.80684903]
[1773688719698,9.94278733,2337.2,2336.2,0.00387168]
[1773688719898,9.94278733,2337.0,2336.2,9.80684903]
[1773688722599,9.94278733,2337.0,2336.2,0.00387168]
[1773688723000,9.94278733,2336.8,2335.2,9.80297735]
[1773688723194,9.94278733,2336.6,2334.9,9.80297735]
[1773688723793,11.876,2336.7,2334.9,9.80297735]
[1773688723794,9.94278733,2336.4,2334.9,9.80297735]
[1773688724000,9.94278733,2336.4,2334.9,9.80845834]
[1773688724892,9.94278733,2336.2,2334.9,9.80845834]
[1773688725097,9.94278733,2336.0,2334.9,9.80845834]
[1773688725898,10.16170855,2336.6,2335.3,9.80297735]
[1773688726301,10.16170855,2336.6,2335.5,9.80297735]
[1773688726601,10.16170855,2336.6,2335.4,0.21408]
[1773688727001,10.16170855,2336.6,2335.0,9.80297735]
[1773688727401,9.94278733,2336.4,2335.1,0.21411]
[1773688727599,9.94278733,2336.4,2335.2,9.80297735]
[1773688728300,9.94278733,2336.4,2334.9,0.00548099]
[1773688728703,9.94278733,2336.2,2334.9,0.00548099]
[1773688729500,9.94278733,2336.2,2334.9,10.02257834]
[1773688730302,9.94278733,2336.2,2335.0,9.80297735]
[1773688731106,9.94278733,2336.2,2335.2,9.80297735]
[1773688732002,9.94278733,2336.2,2334.9,10.57348099]
[1773688732003,9.94278733,2336.2,2335.4,9.80297735]
[1773688732409,10.15561168,2336.2,2335.4,9.80297735]
[1773688732910,9.31970155,2336.5,2335.6,9.54307247]
[1773688734812,9.31970155,2336.5,2335.5,0.21407]
[1773688735506,9.53412483,2336.5,2335.0,0.21412]
[1773688735704,9.45545517,2336.3,2334.9,0.00548099]
[1773688735904,9.45545517,2336.1,2334.9,0.00548099]
[1773688736107,9.45545517,2335.9,2334.9,9.64247195]
[1773688736306,9.45545517,2335.9,2335.0,9.85111096]
[1773688738413,9.45545517,2335.9,2334.1,9.85119096]
[1773688739312,9.45545517,2335.9,2334.1,9.85593214]
[1773688739712,3.55549871,2336.2,2334.1,9.85593214]
[1773688739713,9.45545517,2335.7,2334.1,9.85593214]
[1773688740014,9.45545517,2335.5,2334.1,9.85593214]
[1773688740222,9.45919825,2335.5,2334.1,9.85593214]
[1773688743722,9.45919825,2335.5,2334.1,0.00474118]
[1773688744021,9.45545517,2335.3,2333.2,9.63699096]
[1773688744219,3.55924179,2335.5,2333.4,9.63699096]
[1773688744220,9.45545517,2335.1,2333.4,9.63699096]
[1773688744422,9.45545517,2334.9,2333.4,9.63699096]
[1773688744716,9.45545517,2334.7,2333.4,9.63699096]
[1773688744924,9.45545517,2334.5,2333.4,9.64177526]
[1773688745120,9.45545517,2334.4,2333.4,9.64177526]
[1773688746720,9.45545517,2334.4,2333.4,0.0047843]
[1773688747415,9.45545517,2334.0,2332.0,9.63699096]
[1773688747615,9.45545517,2333.7,2332.2,9.63699096]
[1773688747825,9.45545517,2333.7,2332.4,9.63699096]
[1773688748320,9.45545517,2333.7,2332.4,9.64063504]
[1773688748321,9.45545517,2333.5,2332.4,9.64063504]
[1773688749121,9.45545517,2333.5,2332.4,0.00364408]
[1773688749521,9.45545517,2333.5,2331.8,9.63699096]
[1773688749916,9.45545517,2333.3,2331.8,9.63699096]
[1773688750116,9.45545517,2333.1,2331.8,9.63699096]
[1773688750520,9.45545517,2333.1,2331.8,9.64165609]
[1773688752229,9.45545517,2332.9,2331.8,9.64165609]
[1773688752428,9.45545517,2333.6,2332.0,9.63699096]
[1773688752729,9.45545517,2333.1,2332.2,9.63699096]
[1773688753525,0.21598006,2333.7,2332.4,9.63699096]
[1773688753526,9.45545517,2333.6,2332.4,9.63699096]
[1773688755232,0.21598006,2333.7,2332.6,9.63699096]
[1773688755428,9.67143523,2333.7,2332.6,9.63699096]
[1773688755628,9.67143523,2333.7,2332.8,9.63699096]
[1773688755834,9.67143523,2333.7,2332.3,9.63699096]
[1773688756833,9.67143523,2333.7,2332.5,9.63699096]
[1773688757434,9.67143523,2333.7,2332.7,9.63699096]
[1773688757635,9.67143523,2333.7,2332.9,9.63699096]
[1773688757836,0.00481627,2333.7,2332.9,9.63699096]
[1773688758430,0.2145458,2334.0,2333.1,9.63699096]
[1773688758738,4.91842229,2335.1,2333.1,9.63699096]
[1773688758739,9.45545517,2334.2,2333.1,9.63699096]
[1773688759535,9.4607893,2334.2,2333.3,9.63699096]
[1773688760337,9.4607893,2334.2,2333.4,9.85125096]
[1773688762331,9.6699621,2334.2,2333.1,9.29152154]
[1773688762535,9.6699621,2334.2,2332.9,9.29152154]
[1773688762731,9.6699621,2334.2,2332.4,9.29152154]
[1773688762936,9.6699621,2334.2,2333.2,9.29152154]
[1773688762937,9.72487358,2334.1,2333.2,9.29152154]
[1773688763132,9.72487358,2334.1,2333.1,9.29152154]
[1773688763331,9.72487358,2334.0,2333.1,9.29152154]
[1773688764335,9.73020771,2334.2,2333.1,9.29152154]
[1773688764545,9.73020771,2334.2,2333.3,9.29152154]
[1773688767441,9.73020771,2334.2,2332.7,9.29152154]
[1773688767841,9.73020771,2334.2,2332.3,8.57459]
[1773688767842,9.72487358,2334.0,2332.9,9.29152154]
[1773688769741,9.72487358,2334.0,2333.0,0.2143]
[1773688769940,9.72487358,2334.0,2333.1,9.29152154]
[1773688770244,9.72487358,2334.0,2332.6,9.29152154]
[1773688771143,9.72487358,2333.8,2332.6,9.29152154]
[1773688771543,9.72487358,2334.1,2333.0,9.29152154]
[1773688772038,9.72487358,2334.1,2333.2,9.29152154]
[1773688773841,9.73020771,2334.2,2333.5,9.50577154]
[1773688774041,9.73020771,2334.2,2333.5,9.51025929]
[1773688775842,9.73020771,2334.2,2333.5,0.00448775]
[1773688776339,9.72487358,2334.0,2333.1,9.29152154]
[1773688777344,9.72487358,2333.8,2331.8,9.29152154]
[1773688777542,9.72487358,2333.5,2332.0,9.29152154]
[1773688777846,9.72487358,2333.0,2331.3,4.55959425]
[1773688778045,9.72487358,2332.8,2331.4,9.29152154]
[1773688778244,9.72487358,2332.6,2331.4,9.29469755]
[1773688778445,9.72487358,2332.6,2331.4,9.50914755]
[1773688779148,21.58187358,2332.6,2331.4,9.50914755]
[1773688779544,9.72487358,2332.5,2331.4,9.50914755]
[1773688779745,9.72994066,2332.5,2331.4,9.50914755]
[1773688783648,9.72994066,2332.5,2331.4,9.29469755]
[1773688784250,9.72994066,2332.5,2331.4,0.00317601]
[1773688784753,9.72487358,2332.3,2331.4,0.00317601]
[1773688784948,0.00506708,2332.5,2330.1,11.51820748]
[1773688784949,9.72487358,2332.1,2330.1,11.51820748]
[1773688785252,9.72487358,2331.9,2330.1,11.51820748]
[1773688785453,9.72487358,2331.7,2330.1,11.51820748]
[1773688785746,9.72487358,2331.5,2330.1,11.30364748]
[1773688785951,9.72487358,2331.5,2330.1,11.30786428]
[1773688788049,9.72487358,2331.5,2330.3,9.29152154]
[1773688789250,9.72487358,2331.5,2330.5,9.29152154]
[1773688789457,9.72487358,2331.5,2330.6,9.50604154]
[1773688789752,9.93999259,2331.5,2330.6,9.50604154]
[1773688790055,9.72487358,2331.5,2330.6,9.50604154]
[1773688791656,9.72487358,2331.8,2330.6,9.50604154]
[1773688791854,9.72487358,2331.8,2330.9,9.29152154]
[1773688793249,9.72487358,2331.8,2330.8,0.2145]
[1773688793454,9.72487358,2331.8,2330.3,9.31427613]
[1773688793659,9.72487358,2331.8,2330.5,9.31427613]
[1773688795061,9.08320531,2331.7,2330.5,9.31427613]
[1773688795860,9.08320531,2331.7,2330.7,8.5599933]
[1773688796459,9.08320531,2331.7,2330.6,0.21452]
[1773688798159,9.08320531,2331.7,2330.6,8.7745133]
[1773688798356,9.33035247,2331.6,2330.6,8.7745133]
[1773688799058,9.33035247,2331.6,2330.1,12.51434274]
[1773688799059,9.33035247,2331.6,2330.2,8.5599933]
[1773688800262,9.33035247,2331.6,2330.3,0.21455]
[1773688801059,9.54140924,2331.6,2330.3,0.21455]
[1773688801260,9.54140924,2331.6,2330.3,8.7745433]
[1773688802052,9.54140924,2331.6,2330.1,8.5642101]
[1773688802251,9.33035247,2331.4,2330.1,8.5642101]
[1773688803161,9.33035247,2330.8,2329.3,8.5599933]
[1773688803357,9.33035247,2330.6,2329.3,8.5599933]
[1773688803757,9.33035247,2330.6,2329.5,8.5599933]
[1773688804161,9.33411495,2330.6,2329.5,8.56385146]
[1773688804855,9.33411495,2330.6,2329.7,8.5599933]
[1773688805464,9.33411495,2330.6,2329.5,8.56385146]
[1773688805865,9.33411495,2330.6,2329.5,0.00385816]
[1773688806662,9.33035247,2330.4,2329.5,0.00385816]
[1773688807462,9.33035247,2330.4,2328.9,8.58707]
[1773688807463,9.33035247,2330.4,2328.9,8.5599933]
[1773688807659,9.33035247,2330.2,2328.9,8.5599933]
[1773688807966,9.33035247,2330.2,2329.0,8.7746633]
[1773688808465,9.33035247,2330.2,2329.0,8.77990532]
[1773688809863,9.33035247,2330.0,2328.5,8.5599933]
[1773688810068,9.33035247,2329.8,2328.7,8.5599933]
[1773688810263,9.33035247,2329.6,2328.7,8.5599933]
[1773688810870,9.33035247,2330.1,2329.1,8.5599933]
[1773688811063,9.33035247,2330.1,2329.1,8.56452988]
[1773688811866,9.54950568,2330.1,2329.1,8.56452988]
[1773688812170,9.54950568,2330.1,2329.3,8.5599933]
[1773688812561,9.33035247,2330.1,2329.3,8.5599933]
[1773688812764,9.33035247,2330.3,2329.7,8.5599933]
[1773688812966,0.00376248,2330.6,2329.9,8.5599933]
[1773688813268,9.33035247,2330.9,2330.1,8.5599933]
[1773688813465,6.59650863,2331.9,2330.3,8.5599933]
[1773688813466,9.33035247,2331.6,2330.3,8.5599933]
[1773688813766,9.33035247,2331.6,2330.2,8.58237]
[1773688813767,9.33035247,2331.6,2330.7,8.5599933]
[1773688813971,9.33035247,2332.1,2330.7,8.5599933]
[1773688814166,9.33035247,2331.9,2330.7,8.5599933]
[1773688816570,9.33035247,2331.7,2330.1,8.5599933]
[1773688816868,9.33035247,2331.6,2330.7,8.5599933]
[1773688818775,9.33035247,2332.0,2331.0,0.21448]
[1773688819071,0.00378661,2332.1,2331.1,8.5599933]
[1773688819276,0.00378661,2332.1,2331.5,8.5599933]
[1773688819568,9.33035247,2332.4,2331.5,8.5599933]
[1773688820472,9.33372845,2332.4,2331.5,8.5599933]
[1773688820871,0.20936213,2332.8,2331.8,0.21441]
[1773688821077,0.20936213,2332.8,2331.9,8.5599933]
[1773688821471,9.33035247,2332.9,2331.9,8.5599933]
[1773688821973,9.33429015,2332.9,2331.9,8.5599933]
[1773688823375,9.33429015,2332.9,2331.9,19.0099933]
[1773688823580,9.33429015,2332.9,2332.0,9.16685053]
[1773688824175,8.81407384,2333.6,2332.2,9.16685053]
[1773688824477,8.53712272,2333.6,2332.2,9.16685053]
[1773688825371,8.54196126,2333.6,2332.2,9.16685053]
[1773688825568,8.54196126,2333.6,2332.4,9.16685053]
[1773688827572,8.54196126,2333.6,2331.8,9.16685053]
[1773688827777,8.53712272,2333.4,2331.8,9.16685053]
[1773688829580,8.53712272,2333.4,2332.0,9.16685053]
[1773688830080,8.53712272,2333.4,2332.2,9.16685053]
[1773688831383,8.53712272,2333.4,2331.9,9.16685053]
[1773688832578,8.53712272,2333.4,2331.4,9.16685053]
[1773688832778,8.53712272,2333.0,2331.4,9.16685053]
[1773688832980,8.53712272,2332.8,2331.4,9.16685053]
[1773688834489,8.53712272,2332.8,2331.6,9.16685053]
[1773688835584,8.53712272,2332.8,2331.3,9.16685053]
[1773688835778,8.53712272,2332.8,2331.5,9.16685053]
[1773688835984,8.53712272,2332.6,2331.0,0.00527172]
[1773688836283,8.53712272,2331.8,2330.6,9.16685053]
[1773688837078,8.54141552,2331.8,2330.6,9.17017527]
[1773688837284,8.54141552,2331.8,2330.6,0.00332474]
[1773688837585,8.54141552,2331.8,2330.6,9.17017527]
[1773688838890,8.75736441,2331.8,2330.6,9.17017527]
[1773688839090,10.56050578,2331.8,2330.6,9.17017527]
[1773688839285,1.80314137,2331.4,2330.0,9.16685053]
[1773688839589,8.53712272,2331.3,2330.0,9.16685053]
[1773688839986,8.53712272,2331.3,2330.2,9.16685053]
[1773688840390,8.53712272,2331.3,2330.2,9.1717304]
[1773688841291,8.53712272,2331.3,2330.2,0.00487987]
[1773688841485,8.53712272,2331.1,2330.2,0.00487987]
[1773688842086,8.53712272,2331.1,2329.5,0.21462]
[1773688842393,8.53712272,2331.1,2329.8,9.16685053]
[1773688842593,8.53712272,2331.1,2330.0,9.16685053]
[1773688842890,8.53712272,2331.7,2330.6,9.16685053]
[1773688843194,8.53712272,2331.7,2330.6,9.17202998]
[1773688843394,8.53712272,2331.5,2330.6,9.17202998]
[1773688845494,8.53712272,2331.5,2330.6,0.00517945]
[1773688845990,8.53712272,2331.5,2330.6,9.17202998]
[1773688848396,8.53712272,2331.5,2330.8,9.16685053]
[1773688850492,8.53712272,2331.7,2330.8,9.16685053]
[1773688850695,8.53712272,2331.7,2331.0,9.16685053]
[1773688852192,0.0042928,2331.8,2331.0,9.16685053]
[1773688852388,8.07101968,2331.8,2331.0,9.16685053]
[1773688852692,11.13398582,2333.6,2330.9,0.21449]
[1773688852693,8.06672688,2332.9,2331.4,8.42261431]
[1773688852992,8.06672688,2332.9,2331.6,8.42261431]
[1773688853192,8.06672688,2332.9,2331.4,8.57809]
[1773688853193,8.06672688,2333.5,2332.3,8.42261431]
[1773688853395,8.28588216,2333.5,2332.3,8.42261431]
[1773688853589,8.29111249,2333.5,2332.5,8.42261431]
[1773688856802,8.29111249,2333.5,2332.3,0.00346666]
[1773688857095,8.29111249,2333.5,2332.3,8.67594593]
[1773688860505,0.00523033,2333.5,2332.7,8.67247927]
[1773688860704,0.00523033,2333.5,2332.9,8.67247927]
[1773688861998,8.11517306,2333.5,2332.4,8.67247927]
[1773688862405,8.11517306,2333.5,2332.5,8.67247927]
[1773688865503,8.11517306,2333.5,2332.3,0.21782666]
[1773688865702,8.11517306,2333.5,2332.3,8.89030593]
[1773688867308,8.3306648,2333.5,2332.3,8.89030593]
[1773688870906,8.3306648,2333.5,2332.3,0.00346666]
[1773688871209,8.10994273,2333.3,2332.3,0.00346666]
[1773688874200,8.10994273,2333.3,2332.3,8.67594593]
[1773688874406,8.10994273,2333.3,2332.5,8.67247927]
[1773688875311,8.10994273,2333.3,2332.3,8.67594593]
[1773688877208,8.11517306,2333.5,2332.9,8.67247927]
[1773688877409,0.00523033,2333.5,2332.9,8.67247927]
[1773688878013,8.11517306,2333.5,2332.9,8.67247927]
[1773688881015,8.10994273,2333.3,2332.4,8.67247927]
[1773688881311,8.10994273,2333.1,2332.4,8.67247927]
[1773688882209,8.10994273,2332.9,2332.3,0.00346666]
[1773688883505,8.10994273,2332.9,2331.1,13.72619]
[1773688883506,12.09528503,2332.6,2331.3,0.21445]
[1773688883706,8.57424568,2332.4,2331.3,8.66574274]
[1773688883906,8.90414082,2332.5,2331.3,8.66574274]
[1773688883907,8.57424568,2332.2,2331.3,8.66574274]
[1773688884209,8.57424568,2332.0,2331.3,8.66574274]
[1773688884409,8.57424568,2332.0,2331.3,8.45545602]
[1773688886810,8.57424568,2332.6,2331.3,8.45545602]
[1773688887007,8.57424568,2332.4,2331.5,8.45129274]
[1773688887916,8.57424568,2332.7,2331.7,8.45129274]
[1773688888609,8.57424568,2332.5,2331.7,8.45129274]
[1773688889610,8.57424568,2332.5,2331.8,8.45129274]
[1773688890715,8.57424568,2332.8,2332.0,8.45129274]
[1773688890917,0.21003815,2332.9,2332.0,8.45129274]
[1773688891117,0.21003815,2332.9,2332.2,8.45129274]
[1773688891118,8.57424568,2332.9,2332.2,8.45129274]
[1773688891612,0.00523033,2333.5,2332.3,8.66565274]
[1773688891613,8.57424568,2333.1,2332.3,8.66565274]
[1773688895414,8.57424568,2333.1,2330.9,7.70863616]
[1773688895415,8.78902424,2333.1,2331.8,0.21441]
[1773688895617,8.57424568,2332.9,2331.6,8.45129274]
[1773688895823,8.57424568,2332.9,2331.5,10.428]
[1773688895824,8.57424568,2332.7,2331.7,8.66571274]
[1773688896414,8.57424568,2332.5,2331.7,8.66571274]
[1773688897218,8.57424568,2332.9,2332.1,8.45129274]
[1773688898417,8.57424568,2332.9,2332.2,0.21437]
[1773688898817,8.57424568,2332.9,2331.9,8.45129274]
[1773688899024,8.57424568,2332.7,2331.7,8.66571274]
[1773688899323,8.57424568,2332.5,2331.8,10.432]
[1773688899923,8.57424568,2332.5,2331.8,18.88329274]
[1773688901219,3.52103935,2333.0,2331.9,8.66569274]
[1773688901417,8.57424568,2333.0,2332.4,8.45129274]
[1773688903224,8.57424568,2333.0,2332.3,0.21436]
[1773688903821,8.57424568,2333.3,2332.3,8.66565274]
[1773688904024,8.57424568,2333.1,2332.3,0.21436]
[1773688904227,8.57424568,2332.9,2331.9,8.45129274]
[1773688907136,8.57424568,2332.9,2332.0,8.66568274]
[1773688907531,8.57424568,2332.9,2331.3,8.45545602]
[1773688907732,8.57424568,2332.5,2331.3,8.45545602]
[1773688907930,8.57424568,2332.3,2331.5,8.66572274]
[1773688909429,8.57424568,2332.3,2331.7,8.45129274]
[1773688913031,5.38125695,2332.2,2331.3,7.68936078]
[1773688913236,8.31832712,2332.1,2331.3,7.68936078]
[1773688915829,8.31832712,2332.1,2331.3,0.00416328]
[1773688916230,8.31832712,2332.1,2331.3,8.27692117]
[1773688916733,8.31832712,2332.1,2331.4,8.48720789]
[1773688920838,8.31832712,2332.1,2331.5,8.27275789]
[1773688921637,8.31832712,2332.1,2331.4,0.21445]
[1773688921833,8.31832712,2332.1,2331.4,10.68345]
[1773688922537,8.39206558,2331.9,2331.3,0.00416328]
[1773688922737,8.39206558,2331.9,2331.3,8.49137117]
[1773688923052,8.39206558,2332.3,2331.4,8.27275789]
[1773688923236,8.39206558,2332.1,2331.4,8.27275789]
[1773688926038,8.39206558,2332.1,2331.6,8.27275789]
[1773688926341,8.39206558,2332.3,2331.6,8.27275789]
[1773688926541,5.3776888,2332.2,2331.6,8.27275789]
[1773688926836,13.76975438,2332.2,2331.6,8.27275789]
[1773688927041,8.39206558,2332.2,2331.6,8.27275789]
[1773688927341,8.39206558,2332.2,2331.6,18.75475789]
[1773688927633,8.39206558,2332.2,2331.8,8.27275789]
[1773688927838,8.39206558,2332.2,2331.5,8.27275789]
[1773688928833,3.52103935,2332.5,2331.5,8.27275789]
[1773688929039,5.38609423,2332.4,2331.7,8.27275789]
[1773688929340,8.39206558,2332.5,2331.7,8.27275789]
[1773688929938,8.39206558,2332.5,2331.9,8.27275789]
[1773688930239,8.39206558,2332.5,2332.0,8.27275789]
[1773688930596,8.39206558,2332.5,2331.3,0.00416328]
[1773688930597,8.39206558,2332.3,2331.4,8.27275789]
[1773688930749,8.39206558,2332.3,2331.5,8.27275789]
[1773688932240,3.52103935,2332.6,2331.3,8.49138117]
[1773688932241,8.39206558,2332.1,2331.3,8.49138117]
[1773688932439,8.39206558,2331.9,2330.9,18.76775789]
[1773688932642,8.39206558,2331.7,2331.0,8.27275789]
[1773688933145,8.39206558,2331.5,2330.7,8.27275789]
[1773688933444,8.39561997,2331.5,2330.7,8.27763562]
[1773688933944,8.39561997,2331.5,2330.7,18.77663562]
[1773688934443,8.39206558,2331.3,2330.7,0.00487773]
[1773688937138,8.39206558,2331.3,2330.7,8.27763562]
[1773688937340,8.39206558,2331.3,2330.7,0.00487773]
[1773688938547,8.39206558,2331.7,2331.0,8.27275789]
[1773688939345,8.39206558,2331.7,2331.1,10.513]
[1773688939647,8.39589506,2331.7,2331.1,10.513]
[1773688940350,8.39589506,2331.7,2331.2,8.27275789]
[1773688941049,8.39589506,2331.7,2330.9,8.48724789]
[1773688941246,8.39589506,2331.7,2331.0,10.518]
[1773688943059,8.39589506,2331.7,2330.9,9.78704193]
[1773688943259,7.84107836,2331.5,2330.9,9.78704193]
[1773688943856,7.84107836,2331.5,2330.7,0.00487773]
[1773688944062,7.84107836,2331.3,2330.3,10.525]
[1773688944255,5.36085584,2331.2,2330.3,10.525]
[1773688944562,7.84107836,2331.1,2330.3,10.525]
[1773688944762,7.84107836,2331.1,2330.3,18.15455763]
[1773688944956,7.84107836,2331.1,2330.3,18.15655763]
[1773688945160,7.84107836,2331.1,2330.4,7.62955763]
[1773688946660,7.84107836,2331.1,2330.4,18.16055763]
[1773688947060,7.84107836,2331.1,2330.3,10.53617602]
[1773688947254,7.84107836,2331.1,2330.3,18.16573365]
[1773688947460,7.84107836,2331.1,2330.4,7.62955763]
[1773688948359,7.84107836,2331.4,2330.4,7.62955763]
[1773688948662,7.84107836,2331.4,2330.6,7.62955763]
[1773688949364,7.84107836,2331.4,2330.6,18.16755763]
[1773688949962,7.84107836,2331.4,2330.7,7.62955763]
[1773688952863,7.84107836,2331.4,2330.4,7.62955763]
[1773688953060,5.3593397,2331.3,2330.4,7.62955763]
[1773688953265,7.84107836,2331.2,2330.4,7.62955763]
[1773688953666,0.21923078,2331.5,2330.4,7.84409763]
[1773688953667,8.06030914,2331.5,2330.4,7.84409763]
[1773688953964,7.84107836,2331.3,2330.4,7.84409763]
[1773688954868,8.06030914,2331.5,2330.4,7.84409763]
[1773688957570,5.3667995,2331.4,2330.4,7.84409763]
[1773688957762,8.06030914,2331.5,2330.4,7.84409763]
[1773688958570,7.84490784,2331.7,2330.9,7.62955763]
[1773688958867,7.84490784,2331.7,2330.3,12.35282285]
[1773688958868,0.00382948,2331.7,2331.1,7.62955763]
[1773688960266,7.84490784,2331.7,2331.1,7.62955763]
[1773688961272,7.84490784,2331.7,2330.5,7.62955763]
[1773688961468,7.84490784,2331.7,2330.7,7.62955763]
[1773688961677,5.37931381,2331.6,2330.7,7.62955763]
[1773688961971,7.84107836,2331.5,2330.7,7.62955763]
[1773688964165,7.84107836,2331.5,2330.9,7.62955763]
[1773688965675,7.84107836,2331.5,2330.4,0.21453]
[1773688965877,7.84107836,2331.5,2330.6,7.62955763]
[1773688967070,7.84490784,2331.7,2330.8,7.62955763]
[1773688967274,5.39136987,2331.6,2330.8,7.62955763]
[1773688967474,13.23244823,2331.6,2330.8,7.62955763]
[1773688967674,7.84107836,2331.5,2330.8,7.62955763]
[1773688968076,0.00382948,2331.7,2331.0,7.62955763]
[1773688968275,7.84107836,2332.1,2331.2,7.62955763]
[1773688968478,5.38894931,2332.0,2331.4,7.62955763]
[1773688968677,13.23002767,2332.0,2331.4,7.62955763]
[1773688968879,7.84107836,2332.0,2331.4,7.62955763]
[1773688969276,7.84526715,2332.0,2331.4,7.62955763]
[1773688969777,7.84107836,2332.8,2332.2,7.62955763]
[1773688969977,6.59650863,2333.4,2332.4,7.62955763]
[1773688969978,7.84107836,2333.1,2332.4,7.62955763]
[1773688970781,7.84539856,2333.1,2332.4,0.0045795]
[1773688972675,8.05777712,2333.1,2332.4,0.0045795]
[1773688972986,8.05777712,2333.1,2332.4,7.59358216]
[1773688974679,8.05777712,2333.1,2332.4,0.0045795]
[1773688975584,8.05777712,2333.1,2332.4,7.62470838]
[1773688977581,8.05777712,2333.1,2332.4,0.0045795]
[1773688978485,8.05777712,2333.1,2332.0,7.62012888]
[1773688978684,8.05777712,2333.1,2332.0,18.21212888]
[1773688979186,8.05777712,2333.1,2332.1,7.62012888]
[1773688979382,8.05777712,2333.1,2332.1,7.83449888]
[1773688979582,8.05777712,2333.1,2332.1,7.83952342]
[1773688980983,7.84539856,2333.1,2332.1,7.83952342]
[1773688981882,7.84539856,2333.1,2332.3,7.62012888]
[1773688982086,7.84539856,2333.1,2332.1,0.00502454]
[1773688982282,5.30927,2333.0,2331.7,7.62012888]
[1773688982586,8.19880348,2332.9,2331.7,7.62012888]
[1773688982786,8.19880348,2332.7,2331.7,7.62012888]
[1773688983181,8.19880348,2332.7,2331.7,7.62540959]
[1773688984879,8.19880348,2332.7,2331.9,7.62012888]
[1773688987388,11.6933202,2333.1,2331.8,10.81941]
[1773688987389,8.19880348,2333.0,2332.1,7.62012888]
[1773688988085,8.19880348,2333.0,2332.3,7.62012888]
[1773688988985,8.19880348,2333.0,2332.4,0.21436]
[1773688989184,8.19880348,2333.0,2332.5,7.62012888]
[1773688989987,8.19880348,2333.0,2332.4,0.21436]
[1773688991788,8.19880348,2333.0,2331.9,7.62012888]
[1773688991986,8.19880348,2333.0,2331.8,0.2144]
[1773688991987,8.19880348,2333.0,2332.1,7.62012888]
[1773688992988,8.19880348,2333.0,2332.3,7.62012888]
[1773688994089,8.19880348,2333.0,2332.2,0.21437]
[1773688994488,8.19880348,2333.0,2332.2,7.83449888]
[1773688995484,8.19880348,2333.0,2332.2,0.21437]
[1773688996388,8.19880348,2333.0,2332.2,7.83449888]
[1773688997190,5.25263751,2332.9,2332.2,7.83449888]
[1773688997391,8.19880348,2332.8,2332.2,7.83449888]
[1773688999185,8.19880348,2332.8,2331.8,18.23812888]
[1773688999382,8.19880348,2332.6,2331.8,7.62012888]
[1773688999585,8.19880348,2332.4,2331.8,7.62012888]
[1773689003291,0.0043202,2333.1,2332.0,7.47943081]
[1773689003292,7.9394044,2332.7,2332.0,7.47943081]
[1773689003491,7.9394044,2332.9,2332.2,7.47943081]
[1773689003691,5.25689155,2332.8,2332.2,7.47943081]
[1773689003991,7.9394044,2332.7,2332.2,7.47943081]
[1773689004591,7.9394044,2332.5,2332.2,7.47943081]
[1773689006292,7.9394044,2332.5,2331.8,18.10743081]
[1773689006893,7.9394044,2332.5,2331.9,7.47943081]
[1773689007400,7.9394044,2332.8,2331.9,7.47943081]
[1773689007594,13.19891531,2332.7,2331.9,7.47943081]
[1773689007798,5.25951091,2332.6,2331.9,7.47943081]
[1773689007998,13.19891531,2332.6,2331.9,7.47943081]
[1773689008199,7.9394044,2332.6,2331.9,7.47943081]
[1773689008395,7.9394044,2332.4,2331.7,0.00528071]
[1773689008699,7.9394044,2332.2,2331.4,7.47943081]
[1773689009798,7.9394044,2332.2,2331.4,7.4841828]
[1773689009999,7.9394044,2332.0,2331.4,7.4841828]
[1773689013009,7.9394044,2332.5,2331.5,7.69386081]
[1773689013304,7.9394044,2332.3,2331.5,7.69386081]
[1773689014005,7.9394044,2332.7,2332.0,7.47943081]
[1773689014199,5.25536539,2332.6,2332.0,7.47943081]
[1773689014402,7.9394044,2332.5,2332.0,7.47943081]
[1773689015403,7.9394044,2332.5,2331.9,0.2144]
[1773689016210,7.9394044,2332.5,2331.5,7.47943081]
[1773689016509,7.9394044,2332.3,2331.5,18.13143081]
[1773689016909,7.9394044,2332.3,2331.4,0.00475199]
[1773689017099,7.9394044,2332.1,2331.4,7.4841828]
[1773689017304,7.9394044,2332.5,2331.6,7.47943081]
[1773689017604,13.2689442,2332.4,2331.8,7.47943081]
[1773689017804,7.9394044,2332.4,2331.9,7.69383081]
[1773689018007,7.9394044,2332.4,2331.9,7.47943081]
[1773689018406,7.9394044,2332.4,2331.8,7.47943081]
[1773689019609,7.9394044,2332.4,2331.5,7.47943081]
[1773689020110,5.33146157,2332.3,2331.5,7.47943081]
[1773689020405,7.9394044,2332.2,2331.5,7.47943081]
[1773689021309,7.9394044,2332.2,2331.6,18.14243081]
[1773689021508,7.9394044,2332.2,2331.7,7.47943081]
[1773689022112,7.9394044,2332.2,2331.6,18.14243081]
[1773689022311,7.9394044,2332.2,2331.6,10.663]
[1773689022512,7.9394044,2332.2,2331.4,0.21919199]
[1773689022811,7.9394044,2332.2,2331.4,10.88519199]